bitfinex/quotes_ETHUSD_20240710
["timestamp","ask_amount","ask_price","bid_price","bid_amount"]
[1720610569282,2.59,3105.3,3103.7,2.66390231]
[1720610569428,5.1529806,3105.6,3103.9,2.324]
[1720610569429,0.19998711,3105.2,3103.9,2.324]
[1720610569628,2.3791,3105.6,3104.1,2.324]
[1720610569629,3.29527095,3105.5,3104.1,2.324]
[1720610569857,0.19989602,3105.4,3104.2,0.0644181]
[1720610570132,0.19989602,3105.4,3104.3,0.10105847]
[1720610570373,0.32951799,3105.3,3104.3,0.16547493]
[1720610571756,0.32951799,3105.3,3104.3,0.06441646]
[1720610571961,0.32951799,3105.3,3104.2,0.06441642]
[1720610572280,0.32951799,3105.3,3104.3,0.10084343]
[1720610572463,0.32951799,3105.3,3104.3,0.16525986]
[1720610572778,0.3329518,3105.2,3104.1,2.324]
[1720610573082,0.3329518,3105.2,3104.2,0.10078431]
[1720610573836,2.489,3105.1,3104.2,0.10078431]
[1720610574175,2.59,3104.5,3103.5,0.9701]
[1720610574377,2.59,3104.5,3104.3,0.09389891]
[1720610574378,0.20007374,3104.4,3104.3,0.09389891]
[1720610574557,3.20007374,3104.4,3103.3,3.465]
[1720610574756,0.20007374,3104.3,3103.3,2.4949]
[1720610574952,0.32000737,3104.2,3103.4,0.09054694]
[1720610575177,2.59,3104.1,3103.4,0.09054694]
[1720610575352,3.20032262,3104.0,3103.4,0.09054694]
[1720610575553,3.0,3104.0,3103.3,2.4949]
[1720610575764,3.0,3104.0,3102.8,2.3809]
[1720610576082,0.559,3103.9,3102.8,2.95568643]
[1720610576283,0.559,3103.9,3102.9,0.09054694]
[1720610576671,3.0,3104.0,3102.9,0.09054694]
[1720610577550,3.0,3104.0,3103.0,0.06444442]
[1720610577750,3.0,3104.4,3103.0,0.06444442]
[1720610577946,0.20022385,3104.3,3103.0,0.06444442]
[1720610578179,2.59,3104.8,3103.1,0.09082807]
[1720610578180,0.20022385,3104.5,3103.1,0.09082807]
[1720610578379,0.20022385,3104.6,3103.1,0.09082807]
[1720610579048,2.59,3104.4,3103.1,0.09082807]
[1720610579252,3.20025703,3104.3,3103.1,0.09082807]
[1720610579584,3.0,3104.3,3103.1,0.09082807]
[1720610579772,0.75926077,3104.2,3103.1,0.09082807]
[1720610580082,0.20026077,3104.1,3103.2,0.09077183]
[1720610580242,0.559,3104.2,3103.2,0.09077183]
[1720610580449,0.20027691,3104.1,3102.8,2.95568643]
[1720610580649,0.20027691,3104.1,3102.9,0.72303691]
[1720610581797,0.559,3104.2,3102.9,0.72303691]
[1720610581962,0.20031592,3104.1,3102.9,0.72303691]
[1720610583399,0.50553178,3103.9,3102.9,0.72303691]
[1720610584297,3.7058477,3103.9,3102.9,0.09077183]
[1720610584463,0.20031592,3103.8,3102.9,0.09077183]
[1720610585311,0.20026211,3103.8,3102.9,0.09077183]
[1720610588585,3.50553178,3103.9,3102.9,0.09077183]
[1720610588793,0.20032451,3103.8,3102.9,0.09077183]
[1720610588965,0.37058563,3103.7,3102.9,0.09077183]
[1720610589301,0.37058563,3103.7,3103.0,0.09117878]
[1720610589693,0.37058563,3103.7,3102.8,2.3809]
[1720610589887,0.37058563,3103.7,3103.1,0.09117878]
[1720610590092,0.37058563,3103.7,3102.8,2.3809]
[1720610590294,0.37058563,3103.7,3103.2,0.09117878]
[1720610590473,0.37058563,3103.7,3102.8,2.61899]
[1720610590809,3.50553178,3103.9,3102.9,0.09117878]
[1720610594105,3.0,3103.8,3102.9,0.09117878]
[1720610594304,0.50553178,3103.9,3102.9,0.09117878]
[1720610594483,0.50553178,3103.9,3103.0,2.253]
[1720610599431,2.3059,3104.9,3103.1,2.46074495]
[1720610599720,0.50545005,3104.5,3103.3,2.3963]
[1720610600079,0.70540774,3104.5,3103.4,0.09109577]
[1720610600280,0.19995769,3104.4,3103.3,2.3963]
[1720610600476,0.70540774,3104.5,3103.3,2.3963]
[1720610600714,3.70540774,3104.5,3103.3,2.3963]
[1720610600923,0.82949846,3104.4,3103.3,2.3963]
[1720610601102,0.19995769,3104.3,3103.3,2.3963]
[1720610601511,3.0,3104.5,3103.4,0.0644381]
[1720610601818,3.0,3104.5,3103.6,2.2587]
[1720610601980,2.94147579,3105.0,3103.6,2.2587]
[1720610601981,3.0,3104.9,3103.6,2.2587]
[1720610602186,3.0,3104.9,3103.5,0.24607381]
[1720610602187,0.19987108,3104.8,3103.7,2.51819498]
[1720610602515,0.19987108,3104.8,3103.8,0.33973416]
[1720610604830,0.19987108,3104.8,3103.8,0.08791466]
[1720610605350,3.0,3104.9,3103.7,2.4302]
[1720610605351,5.77662072,3104.9,3103.7,2.4302]
[1720610605499,0.20002096,3104.8,3103.7,2.4302]
[1720610605694,2.59,3104.6,3103.7,2.4302]
[1720610605925,3.20002096,3104.5,3103.7,2.4302]
[1720610606125,0.77902306,3104.4,3103.7,2.4302]
[1720610606295,0.20009616,3104.3,3103.7,2.4302]
[1720610607001,0.20009616,3104.3,3103.3,2.3807]
[1720610608833,0.5790021,3104.4,3103.3,2.3807]
[1720610608996,0.2001395,3104.3,3103.3,2.3807]
[1720610609400,0.20013955,3104.3,3103.3,2.3807]
[1720610610536,2.59,3104.2,3103.3,2.3807]
[1720610610710,0.5790021,3104.4,3102.6,2.3993]
[1720610610711,2.59,3103.8,3102.6,2.3993]
[1720610610911,0.20013955,3103.7,3103.4,0.0861382]
[1720610611102,3.20013955,3103.7,3102.7,0.9701]
[1720610611302,0.20013955,3103.6,3102.8,0.0861382]
[1720610611538,0.20013955,3103.6,3102.6,2.3993]
[1720610611735,0.7791535,3103.6,3102.6,2.87891643]
[1720610611941,0.57901395,3103.6,3102.7,0.0361382]
[1720610612143,0.57901395,3103.6,3102.7,0.08447153]
[1720610613341,3.0,3103.7,3102.7,0.08447153]
[1720610613528,3.0,3104.1,3102.8,2.2741]
[1720610613843,0.20025947,3104.0,3102.8,2.2741]
[1720610614238,0.20025947,3104.0,3102.9,0.08447153]
[1720610614544,0.20025947,3104.0,3103.0,2.3344]
[1720610614845,0.20025947,3104.0,3103.0,2.57628715]
[1720610615217,0.20025947,3104.0,3103.1,0.08447153]
[1720610615469,3.0,3104.1,3103.1,0.08447153]
[1720610615742,0.5790021,3104.4,3103.1,0.08447153]
[1720610615920,0.20014385,3104.3,3103.1,0.08447153]
[1720610616114,0.20014385,3104.3,3103.2,0.26607587]
[1720610616439,0.20014385,3104.3,3103.3,0.08447153]
[1720610616841,0.20014385,3104.3,3103.2,0.26607587]
[1720610617343,0.20014385,3104.3,3103.3,0.08466431]
[1720610617508,0.20014385,3104.3,3103.4,2.3757]
[1720610617859,0.20014385,3104.3,3103.5,0.24603643]
[1720610618139,0.20014385,3104.3,3103.5,0.33069539]
[1720610618365,0.20014385,3104.6,3103.5,0.33069539]
[1720610618727,0.20014385,3104.6,3103.5,0.24603643]
[1720610618908,2.59,3104.7,3103.5,0.24603643]
[1720610619112,0.4589637,3104.6,3103.5,0.24603643]
[1720610620053,3.45895156,3104.6,3103.5,0.24603643]
[1720610620231,0.19995156,3104.5,3103.5,0.24603643]
[1720610620417,3.45895156,3104.6,3103.5,0.24603643]
[1720610620753,0.19995156,3104.5,3103.5,0.24603643]
[1720610620954,0.19995156,3104.5,3103.6,0.26217364]
[1720610621754,0.19995156,3104.5,3103.4,2.3757]
[1720610622520,0.1999774,3104.5,3103.4,2.3757]
[1720610624042,0.1999774,3104.5,3103.5,0.06443753]
[1720610624241,0.1999774,3104.5,3103.6,2.468]
[1720610624622,0.259,3104.6,3103.7,0.0845224]
[1720610625572,0.259,3104.6,3103.7,0.33977464]
[1720610626845,0.19986287,3104.7,3103.8,2.49983129]
[1720610627550,0.19986287,3104.7,3103.9,0.08444476]
[1720610627982,2.59,3104.4,3103.9,0.08444476]
[1720610628261,3.19986287,3104.3,3103.9,0.08444476]
[1720610628421,0.19986287,3104.2,3103.4,2.2786]
[1720610628621,0.77884916,3104.2,3103.4,2.2786]
[1720610628835,0.19986287,3104.1,3103.5,0.08444476]
[1720610629214,0.20006787,3104.1,3103.5,0.08444476]
[1720610629657,0.20013568,3104.1,3103.5,0.08444476]
[1720610629859,0.20013568,3104.1,3103.4,2.2786]
[1720610630071,0.20013568,3104.1,3103.2,0.9701]
[1720610630072,3.14,3104.0,3103.2,0.9701]
[1720610630215,2.59,3103.6,3102.6,0.9701]
[1720610630421,0.20011418,3103.5,3103.3,0.08444476]
[1720610630622,3.20011418,3103.5,3102.6,0.9701]
[1720610630872,0.20011418,3103.4,3102.6,0.9701]
[1720610631034,0.20011418,3103.4,3102.7,0.08444476]
[1720610631240,0.7791256,3103.4,3102.7,0.08444476]
[1720610631559,0.20011418,3103.3,3102.7,0.08444476]
[1720610632225,0.20011418,3103.3,3102.5,2.3732]
[1720610632423,0.57901142,3103.4,3102.8,0.08444476]
[1720610632731,2.59,3103.2,3102.9,0.08444476]
[1720610632937,3.47930533,3103.1,3102.1,0.9701]
[1720610633282,2.59,3102.3,3102.2,0.08083234]
[1720610633420,0.20027757,3102.3,3102.2,0.08083234]
[1720610633617,0.20027757,3102.3,3101.8,2.3761]
[1720610633618,3.0,3102.3,3101.6,0.9701]
[1720610633821,2.59,3102.9,3102.2,0.07801751]
[1720610634052,3.75947261,3102.8,3101.6,0.9701]
[1720610634249,0.20047261,3102.7,3101.6,0.9701]
[1720610634456,0.20047261,3102.7,3101.7,0.07801751]
[1720610634680,0.20047261,3102.7,3101.8,0.06446731]
[1720610634854,3.0,3102.8,3101.7,0.14247923]
[1720610635058,0.27902776,3103.1,3101.7,0.06446172]
[1720610635246,0.27902776,3103.1,3101.6,0.9701]
[1720610635247,0.87790278,3103.0,3101.6,0.06446934]
[1720610635447,0.32790278,3103.0,3101.7,2.4967]
[1720610635649,0.32790278,3103.0,3101.8,0.06446606]
[1720610635845,0.52830914,3103.0,3101.7,2.63918357]
[1720610636044,0.55,3102.9,3101.7,2.4967]
[1720610636374,3.14,3102.9,3101.8,0.07801751]
[1720610636572,3.34679028,3102.8,3101.8,0.07801751]
[1720610639983,3.34679028,3102.8,3101.8,0.14248672]
[1720610640194,0.32790278,3103.0,3101.8,0.14248672]
[1720610640474,0.27902776,3103.1,3101.8,0.14248672]
[1720610640682,0.27902776,3103.1,3101.8,0.07801751]
[1720610640879,0.20032944,3103.5,3101.8,0.07801751]
[1720610641185,2.59,3103.3,3101.7,2.4967]
[1720610641474,3.0,3103.2,3101.7,2.4967]
[1720610641675,3.0,3103.2,3101.8,0.07801751]
[1720610642404,3.0,3103.2,3101.9,2.2983]
[1720610642546,3.0,3103.2,3102.0,2.53593175]
[1720610642899,4.9183,3104.1,3102.2,2.264]
[1720610643183,2.59,3103.7,3102.3,0.06445481]
[1720610643394,0.259,3103.6,3102.3,0.29730029]
[1720610643546,2.59,3103.7,3102.4,0.07801751]
[1720610643753,0.06900823,3104.0,3102.6,2.3816]
[1720610643975,0.55,3103.9,3102.7,0.06445259]
[1720610644250,0.55,3103.9,3102.7,0.1429522]
[1720610644455,0.55,3103.9,3102.8,0.06444926]
[1720610645512,0.55,3103.9,3102.8,0.30905419]
[1720610645852,3.06900823,3104.0,3102.8,0.30905419]
[1720610646047,3.06900823,3104.0,3102.8,0.24460493]
[1720610646256,0.55,3103.9,3102.6,2.3816]
[1720610646490,2.59,3103.7,3102.6,2.3816]
[1720610646801,3.55,3103.6,3102.7,0.07849961]
[1720610648186,2.59,3103.3,3102.7,0.07849961]
[1720610648487,3.259,3103.2,3102.7,0.07849961]
[1720610649422,0.259,3103.2,3102.7,0.07849961]
[1720610649624,3.55,3103.6,3102.7,0.07849961]
[1720610654010,3.0,3103.6,3102.7,0.07849961]
[1720610656626,0.20022413,3103.5,3102.7,0.07849961]
[1720610657325,0.55,3103.4,3102.7,0.07849961]
[1720610657694,0.55,3103.5,3102.7,0.07849961]
[1720610657895,0.55531494,3103.4,3102.7,0.07849961]
[1720610658314,3.34041134,3103.3,3102.2,3.2212]
[1720610658517,3.0,3103.2,3102.3,0.07846477]
[1720610658825,0.55,3103.1,3102.3,0.07846477]
[1720610660796,3.0,3103.2,3102.3,0.07846477]
[1720610660995,3.0,3103.2,3102.3,0.40843125]
[1720610661339,0.355,3103.4,3102.3,0.40843125]
[1720610661495,0.55,3103.3,3102.3,0.40843125]
[1720610661690,3.1578829,3103.6,3102.3,0.40843125]
[1720610661691,0.55,3103.5,3102.3,0.47289518]
[1720610662153,0.50565114,3103.3,3102.3,0.40843125]
[1720610662324,0.50565114,3103.3,3102.3,0.07846477]
[1720610663909,0.50565114,3103.3,3102.4,2.4108]
[1720610664294,0.50565114,3103.3,3102.5,0.06445373]
[1720610664499,0.50565114,3103.3,3102.6,2.4108]
[1720610664851,0.50565114,3103.3,3102.8,2.4108]
[1720610665146,0.50565114,3103.3,3102.9,0.24892648]
[1720610665313,0.50565114,3103.3,3103.0,0.07846477]
[1720610665846,2.59,3103.8,3103.0,0.07846477]
[1720610666028,3.20014217,3103.7,3103.0,0.07846477]
[1720610666199,3.0,3103.7,3102.8,2.4108]
[1720610666395,0.559,3103.6,3102.8,2.4108]
[1720610667099,3.0,3103.9,3102.8,2.4108]
[1720610667532,0.20018048,3103.8,3102.8,2.4108]
[1720610668334,3.0,3103.9,3102.8,2.4108]
[1720610668497,0.20018987,3103.8,3102.8,2.4108]
[1720610668701,0.20019075,3103.8,3102.8,2.4108]
[1720610668940,0.32001907,3103.7,3102.8,2.4108]
[1720610672442,0.20018587,3103.8,3102.8,2.4108]
[1720610672946,0.20018587,3103.8,3102.9,0.06444822]
[1720610674907,0.20018587,3103.8,3102.8,2.4108]
[1720610675147,3.0,3103.9,3102.8,2.4108]
[1720610675316,0.20016703,3103.8,3102.8,2.4108]
[1720610675516,0.3200167,3103.7,3102.8,2.4108]
[1720610680348,0.20036994,3103.8,3102.8,2.4108]
[1720610680648,0.20036994,3103.8,3103.0,2.406]
[1720610681019,0.06900823,3104.0,3103.2,2.421]
[1720610681020,0.26937817,3104.0,3103.2,2.421]
[1720610681249,0.06900823,3104.0,3103.2,2.421]
[1720610681410,0.06900823,3104.0,3103.3,0.07827191]
[1720610681747,0.06900823,3104.0,3103.2,2.421]
[1720610681945,0.06900823,3104.0,3103.3,0.07827191]
[1720610682306,0.20018387,3104.3,3103.3,0.07827191]
[1720610682511,0.82849729,3104.5,3103.2,2.6631]
[1720610682512,0.20018387,3104.4,3103.2,2.6631]
[1720610682915,0.20018387,3104.4,3103.3,0.07827191]
[1720610683116,0.20018387,3104.4,3103.2,2.6631]
[1720610683314,0.6809378,3104.3,3103.3,0.07827191]
[1720610683616,0.20018387,3104.2,3103.2,2.6631]
[1720610684110,0.20018387,3104.2,3103.3,0.07827191]
[1720610684451,0.20018387,3104.2,3103.2,2.6631]
[1720610684810,0.20018387,3104.2,3103.3,0.07827191]
[1720610685346,0.20018387,3104.2,3103.2,2.6631]
[1720610685347,0.20020391,3104.2,3103.2,2.6631]
[1720610685547,0.20020391,3104.2,3103.3,0.07827191]
[1720610685715,0.20020391,3104.2,3103.2,2.421]
[1720610685915,0.20020391,3104.2,3103.3,0.07827191]
[1720610686166,0.20020391,3104.2,3103.2,2.421]
[1720610686326,0.20020391,3104.2,3103.3,0.07827191]
[1720610686526,0.38811417,3104.1,3103.2,2.421]
[1720610686725,0.38811417,3104.1,3103.3,0.07827191]
[1720610688142,0.38811417,3104.1,3103.2,2.421]
[1720610688573,0.38811417,3104.1,3103.3,0.07827191]
[1720610688796,0.38811417,3104.1,3103.2,2.421]
[1720610689282,0.84514862,3104.0,3103.3,0.07827191]
[1720610689441,0.20021509,3103.9,3103.2,2.421]
[1720610689863,0.20021509,3103.9,3103.3,0.07802818]
[1720610690141,0.49536371,3104.0,3103.2,2.421]
[1720610690373,0.38834779,3103.9,3103.2,2.421]
[1720610690591,0.20021509,3104.2,3103.3,0.07803086]
[1720610690734,0.20021509,3104.2,3103.2,2.421]
[1720610690939,0.20021509,3104.2,3103.3,0.07803086]
[1720610691244,0.55,3104.1,3102.8,2.3862]
[1720610691437,0.55328602,3104.0,3102.8,2.3862]
[1720610691675,0.55,3103.9,3102.9,0.07804425]
[1720610691883,0.20021509,3103.8,3102.8,2.3862]
[1720610692041,0.20021509,3103.8,3102.8,2.45064889]
[1720610692238,0.20025947,3103.9,3102.8,2.3862]
[1720610692469,3.46143204,3104.3,3102.9,0.31671781]
[1720610692470,0.20025947,3104.0,3102.9,0.31671781]
[1720610692687,0.20025947,3104.1,3102.9,0.23862]
[1720610695656,0.20026552,3104.1,3102.9,0.23862]
[1720610696069,0.20026552,3104.2,3102.9,0.23862]
[1720610696762,0.20026552,3104.2,3103.0,2.4466]
[1720610696963,0.20026552,3104.2,3103.1,0.34661981]
[1720610697161,2.81459729,3104.5,3103.2,2.45363619]
[1720610697162,0.20026552,3104.3,3103.2,2.45363619]
[1720610697387,0.20026552,3104.4,3103.4,2.3892]
[1720610697871,0.50559729,3104.5,3103.5,0.0780871]
[1720610698278,0.50559729,3104.5,3103.4,2.3892]
[1720610699055,0.70571151,3104.5,3103.4,2.3892]
[1720610699255,0.37057115,3104.4,3103.4,2.3892]
[1720610699490,0.57068745,3104.4,3103.4,2.3892]
[1720610699712,0.2001163,3104.4,3103.5,0.06443617]
[1720610699910,0.70571359,3104.5,3103.6,2.3203]
[1720610700204,0.70571359,3104.5,3103.7,0.06443155]
[1720610700495,0.2001163,3104.4,3103.6,2.39827998]
[1720610700661,0.50559729,3104.5,3103.6,2.3203]
[1720610700989,0.87616865,3104.5,3103.7,0.07797998]
[1720610701189,0.2001163,3104.4,3103.6,2.3203]
[1720610701370,0.2001163,3104.4,3103.7,0.07797998]
[1720610701567,0.2001163,3104.4,3103.6,2.3203]
[1720610701761,0.50559729,3104.5,3103.7,0.07797998]
[1720610701961,0.50559729,3104.5,3103.6,2.3203]
[1720610702200,0.70571359,3104.5,3103.7,0.06443155]
[1720610702356,0.50559729,3104.5,3103.8,2.3508]
[1720610702563,0.50559729,3104.5,3103.9,0.1423363]
[1720610703957,0.50559729,3104.5,3103.9,0.07791037]
[1720610704561,0.50559729,3104.5,3103.8,2.3508]
[1720610704954,0.35055973,3104.4,3103.8,2.3508]
[1720610705269,0.55050495,3104.4,3103.8,2.3508]
[1720610705880,0.55050495,3104.4,3103.1,2.4857]
[1720610706155,0.55050495,3104.4,3103.2,0.07783809]
[1720610707371,0.55050495,3104.4,3103.3,2.38313613]
[1720610707571,0.50559729,3104.5,3103.5,2.3187]
[1720610707756,0.70551007,3104.5,3103.6,0.07783809]
[1720610708584,0.50559729,3104.5,3103.6,0.07783809]
[1720610708754,0.70550308,3104.5,3103.6,0.07783809]
[1720610709427,0.19999527,3104.4,3103.6,0.07783809]
[1720610709713,0.70559256,3104.5,3103.6,0.07783809]
[1720610709925,0.37055926,3104.4,3103.6,0.07783809]
[1720610710209,0.57055453,3104.4,3103.6,0.07783809]
[1720610710394,2.2712,3104.2,3103.6,0.07783809]
[1720610710567,0.19999527,3104.1,3103.1,2.3983]
[1720610710772,0.19999527,3104.1,3103.2,0.0778086]
[1720610710981,0.54711953,3104.0,3103.2,0.0778086]
[1720610711189,0.19999527,3103.9,3103.2,0.0778086]
[1720610711374,0.55,3103.8,3103.2,0.0778086]
[1720610711597,0.20016762,3103.7,3103.0,0.9701]
[1720610711918,0.20016762,3103.7,3103.1,0.07527933]
[1720610712122,2.9872,3103.6,3103.1,0.07527933]
[1720610712328,0.51890438,3103.5,3102.4,0.9701]
[1720610712485,0.55,3103.4,3103.2,0.07533021]
[1720610712822,0.20016762,3103.3,3102.4,0.9701]
[1720610713328,0.20016762,3103.3,3102.5,0.07533824]
[1720610713609,0.60705806,3103.3,3102.5,0.07533824]
[1720610714682,2.8208,3103.2,3102.5,0.07533824]
[1720610714894,3.0,3103.1,3102.5,0.07533824]
[1720610715094,3.0,3103.1,3102.0,2.3223]
[1720610715294,3.0,3103.1,3102.6,0.07542127]
[1720610715495,0.58208,3103.0,3102.0,2.3223]
[1720610716000,3.0,3103.1,3102.1,0.07542127]
[1720610716592,3.31873676,3103.5,3102.1,0.07542127]
[1720610716793,0.20018255,3103.4,3102.2,2.4147]
[1720610717009,0.20018255,3103.4,3102.4,2.4147]
[1720610717398,3.0,3103.5,3102.5,0.07552039]
[1720610717595,0.20010127,3103.4,3102.5,0.07552039]
[1720610717801,3.20010127,3103.7,3102.5,0.07552039]
[1720610718006,0.7595214,3103.6,3102.5,0.07552039]
[1720610718319,0.20009635,3103.5,3102.5,0.07552039]
[1720610718514,3.0,3103.7,3102.5,0.07552039]
[1720610718515,0.20009635,3103.6,3102.5,0.07552039]
[1720610718824,0.20010039,3103.6,3102.5,0.07552039]
[1720610719115,0.55,3103.5,3102.5,0.07552039]
[1720610719315,0.20010039,3103.4,3102.5,0.07552039]
[1720610719615,2.3965,3103.2,3102.6,0.07545877]
[1720610719813,2.3965,3103.2,3102.0,2.3366]
[1720610719814,0.29465,3103.1,3102.0,2.3366]
[1720610720109,3.29465,3103.1,3102.1,0.07545877]
[1720610721282,3.0,3103.1,3102.1,0.07545877]
[1720610721615,0.55,3103.3,3102.1,0.07545877]
[1720610721804,0.20016199,3103.2,3102.1,0.07545877]
[1720610722001,0.55,3103.1,3102.1,0.07545877]
[1720610722404,0.55,3103.3,3102.1,0.07545877]
[1720610722606,2.4218,3103.1,3102.1,0.07545877]
[1720610722806,5.4218,3103.1,3102.1,0.07545877]
[1720610723133,0.20021023,3103.0,3102.1,0.07545877]
[1720610723318,3.0,3103.0,3102.1,0.07545877]
[1720610723688,3.0,3103.1,3102.1,0.07545877]
[1720610723992,0.63268,3103.1,3102.1,0.31666465]
[1720610724185,3.355,3103.2,3102.1,0.31666465]
[1720610724414,3.0,3103.2,3102.1,0.31666465]
[1720610724618,0.55,3103.3,3102.1,0.31666465]
[1720610724836,3.0,3103.5,3102.3,2.4544]
[1720610725038,3.0,3103.8,3102.5,2.4544]
[1720610725238,0.50000751,3103.7,3102.6,0.25188514]
[1720610725437,0.3,3103.7,3102.6,0.25188514]
[1720610727126,0.55,3103.6,3102.6,0.25188514]
[1720610727339,2.3819,3103.5,3102.5,2.4544]
[1720610727543,0.55,3103.4,3102.7,0.0757614]
[1720610727750,0.55,3103.4,3102.5,2.4544]
[1720610728051,3.55,3103.4,3102.6,0.0757614]
[1720610728251,0.94375165,3103.3,3102.5,2.4544]
[1720610728564,0.94375165,3103.3,3102.7,0.07576676]
[1720610728759,0.94375165,3103.3,3102.5,2.4544]
[1720610729056,0.94375165,3103.3,3102.6,0.07576676]
[1720610729360,0.94375165,3103.3,3102.0,2.448]
[1720610729654,0.44937517,3103.2,3102.0,3.02949643]
[1720610729957,0.44937517,3103.2,3102.1,0.07577479]
[1720610730453,0.55,3103.1,3102.1,0.07577479]
[1720610731331,2.4468,3103.0,3102.1,0.07577479]
[1720610731537,5.4468,3103.0,3102.1,0.07577479]
[1720610731774,0.54468,3102.9,3102.1,0.07577479]
[1720610731937,3.0,3102.9,3102.1,0.14024077]
[1720610732420,3.0,3103.4,3102.1,0.14024077]
[1720610732761,0.55,3103.3,3102.1,0.14024077]
[1720610732929,0.55,3103.4,3102.1,0.14024077]
[1720610733119,0.40556165,3103.3,3102.2,0.25882408]
[1720610733321,3.50561648,3103.5,3102.4,2.4247]
[1720610733515,3.50561648,3103.5,3102.5,0.0644489]
[1720610733516,0.50561648,3103.5,3102.5,0.0644489]
[1720610733720,0.50561648,3103.5,3102.5,0.07582839]
[1720610733921,2.79421648,3103.5,3102.5,0.07582839]
[1720610734161,3.0,3103.4,3102.5,0.07582839]
[1720610734453,0.57942165,3103.3,3102.4,2.4247]
[1720610734818,0.57942165,3103.3,3102.5,0.07582839]
[1720610736925,3.0,3103.4,3102.5,0.14028681]
[1720610737121,0.50561648,3103.5,3102.6,2.2824]
[1720610737321,0.50561648,3103.5,3102.7,0.06444909]
[1720610737869,0.50561648,3103.5,3102.8,0.07582839]
[1720610738026,0.50561648,3103.5,3102.8,0.38254506]
[1720610738526,0.2000227,3104.1,3102.9,2.4578]
[1720610738723,0.2000227,3104.1,3103.0,0.06444166]
[1720610738921,0.50554127,3103.9,3103.0,0.06444166]
[1720610739323,0.50554127,3103.9,3103.1,0.07582839]
[1720610739773,0.50554127,3103.9,3102.9,2.4578]
[1720610740086,0.50554127,3103.9,3103.0,0.27000678]
[1720610740394,0.50554127,3103.9,3103.0,0.07582839]
[1720610740687,0.50554127,3103.9,3102.9,2.4578]
[1720610743601,0.50554127,3103.9,3103.1,2.2858]
[1720610743812,0.50554127,3103.9,3103.2,0.06443923]
[1720610744160,0.50554127,3103.9,3103.3,0.07569177]
[1720610744502,0.50554127,3103.9,3103.3,0.0644392]
[1720610744955,0.50554127,3103.9,3103.4,0.07553907]
[1720610745383,0.50554127,3103.9,3103.5,2.53533921]
[1720610745571,2.3933,3104.9,3103.6,0.26108783]
[1720610745782,2.3933,3104.9,3103.7,0.13993335]
[1720610745783,0.19984667,3104.8,3103.7,0.13993335]
[1720610745973,0.50547107,3104.3,3103.7,0.13993335]
[1720610747562,0.50547107,3104.3,3103.7,0.07550158]
[1720610747995,0.50547107,3104.3,3103.6,0.0644311]
[1720610748340,0.50547107,3104.3,3103.8,0.07550158]
[1720610748494,0.50547107,3104.3,3103.6,0.25353311]
[1720610748704,0.50547107,3104.3,3103.9,0.07550158]
[1720610749023,0.50547107,3104.3,3103.6,0.25353311]
[1720610749333,0.50547107,3104.3,3104.0,0.07539982]
[1720610749558,0.50547107,3104.3,3103.6,0.25353311]
[1720610749689,0.50547107,3104.3,3103.7,0.27244331]
[1720610749880,0.50547107,3104.3,3103.7,0.34784313]
[1720610752336,0.50547107,3104.3,3103.8,2.32982787]
[1720610752800,0.50547107,3104.3,3103.9,0.07538644]
[1720610753307,0.19974951,3105.2,3104.0,0.06442553]
[1720610753493,0.19974951,3105.2,3103.8,2.2654]
[1720610753494,0.81695495,3105.1,3103.8,2.2654]
[1720610753836,0.50540794,3104.7,3104.1,0.07538644]
[1720610754324,0.50540794,3104.7,3104.2,0.07538644]
[1720610754523,0.50540794,3104.7,3103.8,2.2654]
[1720610754713,0.50540794,3104.7,3104.3,0.07538644]
[1720610754916,0.50540794,3104.7,3103.8,2.2654]
[1720610755103,0.50540794,3104.7,3104.4,0.07538644]
[1720610755435,0.50540794,3104.7,3103.9,0.35079433]
[1720610755436,0.50540794,3104.7,3103.8,2.2654]
[1720610755588,0.50540794,3104.7,3104.5,0.07514279]
[1720610755989,0.50540794,3104.7,3103.8,2.2654]
[1720610756218,0.50540794,3104.7,3104.6,0.07514279]
[1720610756525,0.33663291,3104.9,3104.6,0.07514279]
[1720610756823,2.9651614,3105.6,3104.6,0.07514279]
[1720610757024,0.3366122,3105.3,3104.4,2.3802]
[1720610757225,0.3366122,3105.3,3104.5,0.06441714]
[1720610757433,0.3366122,3105.3,3104.5,0.06441619]
[1720610757631,0.3366122,3105.3,3104.5,0.06441581]
[1720610758125,0.3366122,3105.3,3104.4,2.3802]
[1720610758126,3.0,3105.5,3104.6,0.07514279]
[1720610758372,3.0,3105.5,3104.4,2.4446143]
[1720610758373,0.35053614,3105.4,3104.4,2.4446143]
[1720610758485,0.33657714,3105.4,3104.7,0.07507855]
[1720610758689,0.33657714,3105.4,3104.4,2.4446143]
[1720610758889,0.33657714,3105.4,3104.8,0.07507855]
[1720610759086,0.33657714,3105.4,3104.4,2.3802]
[1720610759313,0.33657714,3105.4,3104.9,0.07507855]
[1720610759513,0.33657714,3105.4,3104.4,2.3802]
[1720610759730,0.33657714,3105.4,3105.0,0.07507855]
[1720610759934,0.33657714,3105.4,3104.4,2.3802]
[1720610760234,0.33657714,3105.4,3105.1,0.07507855]
[1720610760440,0.33657714,3105.4,3104.4,2.3802]
[1720610760732,3.5053614,3105.6,3105.2,0.07507855]
[1720610760941,5.23518154,3105.3,3104.0,3.3078]
[1720610761094,3.0,3105.2,3104.0,3.3078]
[1720610761289,3.0,3105.2,3104.1,0.07507855]
[1720610761290,3.55,3105.2,3104.1,0.07507855]
[1720610763823,3.0,3105.2,3104.1,0.07507855]
[1720610764023,0.55,3105.1,3104.1,0.07507855]
[1720610764324,0.355,3105.0,3104.1,0.07507855]
[1720610768157,3.0,3105.2,3104.1,0.07507855]
[1720610768953,2.6451944,3105.3,3104.1,0.07507855]
[1720610769140,3.0,3105.2,3104.1,0.07507855]
[1720610770014,0.55,3105.1,3104.1,0.07507855]
[1720610771153,2.4973,3105.0,3104.1,0.07507855]
[1720610771363,0.85473,3104.9,3103.6,2.4834]
[1720610771528,0.85473,3104.9,3104.2,0.07486152]
[1720610771866,3.30473,3104.9,3103.6,2.54782949]
[1720610772048,3.30473,3104.9,3104.3,0.0749204]
[1720610772049,3.0,3104.9,3104.3,0.0749204]
[1720610772374,3.0,3104.9,3103.7,0.9701]
[1720610772532,2.4973,3105.0,3103.7,0.9701]
[1720610772737,2.4973,3105.0,3103.8,0.07493646]